[Event "Late-Titled-Tuesday-Blitz-May-14-2024"]
[Site "Chess.com"]
[Date "2024.05.14"]
[Round "3"]
[White "VacheH009"]
[Black "Masterisback04"]
[Result "1-0"]
[WhiteElo "2549"]
[BlackElo "2022"]
[TimeControl "180+1"]
[EndTime "14:29:35 PDT"]
[Termination "VacheH009 won on time"]

1. Nf3 {[%clk 0:03:00.9]} 1... g6 {[%clk 0:02:59.1]} 2. d4 {[%clk 0:02:58.8]}
2... Bg7 {[%clk 0:02:59.2]} 3. c4 {[%clk 0:02:57.6]} 3... Nf6 {[%clk 0:02:57.7]}
4. Nc3 {[%clk 0:02:57.9]} 4... d5 {[%clk 0:02:57.2]} 5. cxd5 {[%clk 0:02:56.9]}
5... Nxd5 {[%clk 0:02:57.4]} 6. Bd2 {[%clk 0:02:48.4]} 6... O-O {[%clk 0:02:43]}
7. e4 {[%clk 0:02:47.8]} 7... Nb6 {[%clk 0:02:36.1]} 8. Be3 {[%clk 0:02:41.7]}
8... Bg4 {[%clk 0:02:35.1]} 9. Be2 {[%clk 0:02:39.1]} 9... Bxf3 {[%clk
0:02:30.5]} 10. gxf3 {[%clk 0:02:37.5]} 10... Nc6 {[%clk 0:02:25.6]} 11. d5
{[%clk 0:02:35.4]} 11... Ne5 {[%clk 0:02:25.4]} 12. Bd4 {[%clk 0:02:10.8]} 12...
Rc8 {[%clk 0:02:06]} 13. f4 {[%clk 0:02:03.6]} 13... Ned7 {[%clk 0:02:00.7]} 14.
Bxg7 {[%clk 0:01:57.5]} 14... Kxg7 {[%clk 0:02:01.6]} 15. h4 {[%clk 0:01:57.4]}
15... h5 {[%clk 0:01:58.5]} 16. Bxh5 {[%clk 0:01:46.5]} 16... Rh8 {[%clk
0:00:55.6]} 17. Be2 {[%clk 0:01:42.1]} 17... c5 {[%clk 0:00:46.7]} 18. h5 {[%clk
0:01:30.5]} 18... Nf6 {[%clk 0:00:45.1]} 19. Qd3 {[%clk 0:01:14.5]} 19... e6
{[%clk 0:00:21.9]} 20. O-O-O {[%clk 0:01:01.1]} 20... exd5 {[%clk 0:00:19.1]}
21. exd5 {[%clk 0:00:58.9]} 21... Qd6 {[%clk 0:00:17.1]} 22. Qg3 {[%clk
0:00:47.5]} 22... Nbxd5 {[%clk 0:00:07.3]} 23. Nxd5 {[%clk 0:00:26.8]} 23...
Nxd5 {[%clk 0:00:08.2]} 24. Kb1 {[%clk 0:00:16.2]} 24... Qe6 {[%clk 0:00:08.2]}
25. Bc4 {[%clk 0:00:13.3]} 25... Qe4+ {[%clk 0:00:06.6]} 26. Bd3 {[%clk
0:00:13.8]} 26... Qxf4 {[%clk 0:00:06.7]} 27. Qg2 {[%clk 0:00:12.6]} 27... Nb4
{[%clk 0:00:05.7]} 28. Bxg6 {[%clk 0:00:09.2]} 28... Kf6 {[%clk 0:00:02.4]} 29.
Be4 {[%clk 0:00:04.9]} 29... Rcg8 {[%clk 0:00:02.6]} 30. Qf3 {[%clk 0:00:03.1]}
30... Qxf3 {[%clk 0:00:02.9]} 31. Bxf3 {[%clk 0:00:04]} 31... Rg5 {[%clk
0:00:02.9]} 32. h6 {[%clk 0:00:02.4]} 32... Rg6 {[%clk 0:00:02.6]} 33. Bxb7
{[%clk 0:00:02.8]} 33... Rgxh6 {[%clk 0:00:02.7]} 34. Rd6+ {[%clk 0:00:03.2]}
34... Kg7 {[%clk 0:00:03.3]} 35. Rg1+ {[%clk 0:00:03.2]} 35... Rg6 {[%clk
0:00:02.5]} 36. Rgxg6+ {[%clk 0:00:02.4]} 36... fxg6 {[%clk 0:00:03.4]} 37. Rd7+
{[%clk 0:00:03.2]} 37... Kf6 {[%clk 0:00:03.6]} 38. a3 {[%clk 0:00:02.4]} 1-0

[Event "Late-Titled-Tuesday-Blitz-May-14-2024"]
[Site "Chess.com"]
[Date "2024.05.14"]
[Round "3"]
[White "Cuchulin"]
[Black "Nick12772"]
[Result "1/2-1/2"]
[WhiteElo "2227"]
[BlackElo "2420"]
[TimeControl "180+1"]
[EndTime "14:29:35 PDT"]
[Termination "Game drawn - insufficient material"]

1. d4 {[%clk 0:03:00.9]} 1... Nf6 {[%clk 0:03:00.4]} 2. Bf4 {[%clk 0:03:01.2]}
2... g6 {[%clk 0:03:00.9]} 3. Nc3 {[%clk 0:03:00.5]} 3... d5 {[%clk 0:03:01.2]}
4. e3 {[%clk 0:03:00.5]} 4... Bg7 {[%clk 0:03:01.2]} 5. h4 {[%clk 0:03:01.3]}
5... h5 {[%clk 0:03:00.9]} 6. Be2 {[%clk 0:03:01.4]} 6... c5 {[%clk 0:03:00.3]}
7. Nf3 {[%clk 0:03:01.7]} 7... cxd4 {[%clk 0:03:00.7]} 8. exd4 {[%clk
0:03:01.5]} 8... Bg4 {[%clk 0:03:01]} 9. Ne5 {[%clk 0:02:58.7]} 9... Bxe2 {[%clk
0:03:01.9]} 10. Qxe2 {[%clk 0:02:58.6]} 10... Nc6 {[%clk 0:03:00.1]} 11. O-O-O
{[%clk 0:02:57.5]} 11... Qa5 {[%clk 0:02:51.5]} 12. Qb5 {[%clk 0:02:54.6]} 12...
Qxb5 {[%clk 0:02:43.8]} 13. Nxb5 {[%clk 0:02:55.5]} 13... O-O {[%clk 0:02:41.2]}
14. f3 {[%clk 0:02:43.1]} 14... a6 {[%clk 0:02:36.1]} 15. Nc3 {[%clk 0:02:38]}
15... e6 {[%clk 0:02:34.6]} 16. g4 {[%clk 0:02:09.8]} 16... hxg4 {[%clk
0:02:34.2]} 17. Nxg4 {[%clk 0:02:05.5]} 17... Nxg4 {[%clk 0:02:32.8]} 18. fxg4
{[%clk 0:02:05.3]} 18... Nxd4 {[%clk 0:02:28.3]} 19. h5 {[%clk 0:02:00]} 19...
gxh5 {[%clk 0:02:26.1]} 20. gxh5 {[%clk 0:01:59.6]} 20... Nf5 {[%clk 0:02:21.4]}
21. h6 {[%clk 0:01:54.5]} 21... Bxc3 {[%clk 0:02:16.5]} 22. h7+ {[%clk
0:01:46.6]} 22... Kh8 {[%clk 0:01:43.7]} 23. bxc3 {[%clk 0:01:45.4]} 23... f6
{[%clk 0:01:44.1]} 24. Rdg1 {[%clk 0:01:32.6]} 24... Rf7 {[%clk 0:01:39.4]} 25.
Rg6 {[%clk 0:01:11.1]} 25... Raf8 {[%clk 0:01:37.2]} 26. Bh6 {[%clk 0:01:05]}
26... Kxh7 {[%clk 0:01:16.6]} 27. Rxf6 {[%clk 0:00:43.8]} 27... Rxf6 {[%clk
0:00:57.9]} 28. Bxf8+ {[%clk 0:00:43.7]} 28... Kg6 {[%clk 0:00:55.2]} 29. Bc5
{[%clk 0:00:35.6]} 29... Ng3 {[%clk 0:00:46.4]} 30. Rg1 {[%clk 0:00:31.8]} 30...
Rf1+ {[%clk 0:00:44.6]} 31. Kd2 {[%clk 0:00:25.5]} 31... Rxg1 {[%clk 0:00:41]}
32. Bxg1 {[%clk 0:00:26.4]} 32... Kf5 {[%clk 0:00:38.4]} 33. Kd3 {[%clk
0:00:26.5]} 33... Ne4 {[%clk 0:00:21.9]} 34. c4 {[%clk 0:00:24.1]} 34... dxc4+
{[%clk 0:00:14.7]} 35. Kxc4 {[%clk 0:00:23.3]} 35... Kf4 {[%clk 0:00:15]} 36.
Kd4 {[%clk 0:00:20.1]} 36... Kf3 {[%clk 0:00:06.7]} 37. Ke5 {[%clk 0:00:19.2]}
37... Nc3 {[%clk 0:00:05.4]} 38. Kxe6 {[%clk 0:00:16.9]} 38... Ke2 {[%clk
0:00:05.1]} 39. Kd7 {[%clk 0:00:14.6]} 39... b5 {[%clk 0:00:04.3]} 40. Kc6
{[%clk 0:00:14.1]} 40... Kd1 {[%clk 0:00:04.9]} 41. Kb6 {[%clk 0:00:13.8]} 41...
Kxc2 {[%clk 0:00:02.9]} 42. Kxa6 {[%clk 0:00:13.7]} 42... Kb1 {[%clk 0:00:01.3]}
43. Bd4 {[%clk 0:00:12.5]} 43... Kxa2 {[%clk 0:00:01.8]} 44. Bxc3 {[%clk
0:00:12.6]} 44... Kb3 {[%clk 0:00:02.7]} 45. Ba5 {[%clk 0:00:12.3]} 45... b4
{[%clk 0:00:03.1]} 46. Bxb4 {[%clk 0:00:12.7]} 1/2-1/2

[Event "Late-Titled-Tuesday-Blitz-May-14-2024"]
[Site "Chess.com"]
[Date "2024.05.14"]
[Round "3"]
[White "Chessdude1987"]
[Black "noret"]
[Result "0-1"]
[WhiteElo "2363"]
[BlackElo "2106"]
[TimeControl "180+1"]
[EndTime "14:29:35 PDT"]
[Termination "noret won on time"]

1. e4 {[%clk 0:02:58.2]} 1... e5 {[%clk 0:02:52.8]} 2. Nf3 {[%clk 0:02:56.2]}
2... Nc6 {[%clk 0:02:50.1]} 3. d4 {[%clk 0:02:48.9]} 3... exd4 {[%clk
0:02:48.1]} 4. Nxd4 {[%clk 0:02:49.8]} 4... Bc5 {[%clk 0:02:42.5]} 5. Nxc6
{[%clk 0:02:48.4]} 5... Qf6 {[%clk 0:02:29.8]} 6. Qd2 {[%clk 0:02:48.1]} 6...
dxc6 {[%clk 0:02:28]} 7. Nc3 {[%clk 0:02:47.9]} 7... Ne7 {[%clk 0:02:23]} 8. Bd3
{[%clk 0:02:46.5]} 8... O-O {[%clk 0:02:16]} 9. O-O {[%clk 0:02:46.3]} 9... Ng6
{[%clk 0:02:03.4]} 10. Kh1 {[%clk 0:02:44.4]} 10... Ne5 {[%clk 0:01:36.3]} 11.
Na4 {[%clk 0:02:39.3]} 11... Bd6 {[%clk 0:01:16.5]} 12. f4 {[%clk 0:02:30.3]}
12... Nxd3 {[%clk 0:00:43.5]} 13. Qxd3 {[%clk 0:02:26.8]} 13... Qh4 {[%clk
0:00:35.8]} 14. e5 {[%clk 0:02:06.6]} 14... Be7 {[%clk 0:00:33.9]} 15. b3 {[%clk
0:01:55.1]} 15... f6 {[%clk 0:00:31.5]} 16. Bb2 {[%clk 0:01:47.8]} 16... fxe5
{[%clk 0:00:20.1]} 17. Bxe5 {[%clk 0:01:40.9]} 17... Bf5 {[%clk 0:00:20.2]} 18.
Qc3 {[%clk 0:01:30.7]} 18... Bf6 {[%clk 0:00:19.8]} 19. Nc5 {[%clk 0:01:30]}
19... b6 {[%clk 0:00:18.2]} 20. Na4 {[%clk 0:01:19.9]} 20... Rae8 {[%clk
0:00:12.5]} 21. Rae1 {[%clk 0:01:08.8]} 21... c5 {[%clk 0:00:10.9]} 22. Nb2
{[%clk 0:01:01.3]} 22... Bd7 {[%clk 0:00:10.6]} 23. Qc4+ {[%clk 0:00:50.4]}
23... Be6 {[%clk 0:00:09.2]} 24. Qe4 {[%clk 0:00:49.2]} 24... Bxe5 {[%clk
0:00:06.7]} 25. Qxe5 {[%clk 0:00:40.2]} 25... Bxb3 {[%clk 0:00:06.1]} 26. Qxe8
{[%clk 0:00:10.1]} 26... Rxe8 {[%clk 0:00:05]} 27. Rxe8+ {[%clk 0:00:09.9]}
27... Kf7 {[%clk 0:00:05.9]} 28. Rc8 {[%clk 0:00:06.4]} 28... Be6 {[%clk
0:00:04.6]} 29. Rxc7+ {[%clk 0:00:06.5]} 29... Kf6 {[%clk 0:00:04.5]} 30. f5
{[%clk 0:00:06.4]} 30... Bd5 {[%clk 0:00:02.5]} 31. Rd7 {[%clk 0:00:03.3]} 31...
Qd4 {[%clk 0:00:02.6]} 32. Nd3 {[%clk 0:00:02.1]} 32... Bxg2+ {[%clk 0:00:02.6]}
33. Kxg2 {[%clk 0:00:02.4]} 33... Qxd7 {[%clk 0:00:03]} 34. Nf4 {[%clk
0:00:01.8]} 34... Qc6+ {[%clk 0:00:02.2]} 35. Kg3 {[%clk 0:00:01.8]} 35... Kxf5
{[%clk 0:00:02]} 36. Nd3+ {[%clk 0:00:01.3]} 36... Kg5 {[%clk 0:00:01.7]} 37.
h4+ {[%clk 0:00:00.3]} 37... Kh6 {[%clk 0:00:01.9]} 38. Nf4 {[%clk 0:00:00.5]}
38... Qd6 {[%clk 0:00:01.4]} 0-1

[Event "Late-Titled-Tuesday-Blitz-May-14-2024"]
[Site "Chess.com"]
[Date "2024.05.14"]
[Round "3"]
[White "Polish_fighter3000"]
[Black "AradNazari"]
[Result "1-0"]
[WhiteElo "3107"]
[BlackElo "2800"]
[TimeControl "180+1"]
[EndTime "14:29:38 PDT"]
[Termination "Polish_fighter3000 won by resignation"]

1. d4 {[%clk 0:03:00.9]} 1... Nf6 {[%clk 0:02:58.8]} 2. Bf4 {[%clk 0:02:56.4]}
2... d5 {[%clk 0:02:57]} 3. e3 {[%clk 0:02:56.5]} 3... e6 {[%clk 0:02:57.6]} 4.
Nf3 {[%clk 0:02:55.1]} 4... Bd6 {[%clk 0:02:58.1]} 5. Nbd2 {[%clk 0:02:53.4]}
5... c5 {[%clk 0:02:52.6]} 6. Bb5+ {[%clk 0:02:40.3]} 6... Nc6 {[%clk 0:02:44]}
7. c3 {[%clk 0:02:33.4]} 7... Bxf4 {[%clk 0:02:39.2]} 8. exf4 {[%clk 0:02:34.3]}
8... Qd6 {[%clk 0:02:34.5]} 9. g3 {[%clk 0:02:28.7]} 9... cxd4 {[%clk
0:02:32.8]} 10. Nxd4 {[%clk 0:02:28.2]} 10... Bd7 {[%clk 0:02:31.9]} 11. N4f3
{[%clk 0:02:19.5]} 11... Ne7 {[%clk 0:02:21.5]} 12. Bd3 {[%clk 0:02:18.4]} 12...
Qb6 {[%clk 0:02:17.9]} 13. Qb3 {[%clk 0:02:17.6]} 13... Qc7 {[%clk 0:02:00.4]}
14. h4 {[%clk 0:02:05.8]} 14... h6 {[%clk 0:01:47.8]} 15. Qa3 {[%clk 0:02:04.7]}
15... Nc8 {[%clk 0:01:46.3]} 16. Ne5 {[%clk 0:02:02.2]} 16... Qd6 {[%clk
0:01:44.4]} 17. Qb3 {[%clk 0:01:58]} 17... Bc6 {[%clk 0:01:44.3]} 18. Ndf3
{[%clk 0:01:53.9]} 18... Ne7 {[%clk 0:01:40.5]} 19. O-O-O {[%clk 0:01:48.9]}
19... Nd7 {[%clk 0:01:26.1]} 20. Bb1 {[%clk 0:01:33.2]} 20... Nc5 {[%clk
0:01:20.4]} 21. Qb4 {[%clk 0:01:20]} 21... O-O {[%clk 0:00:56.8]} 22. Rhe1
{[%clk 0:01:16.5]} 22... b6 {[%clk 0:00:52.5]} 23. h5 {[%clk 0:01:09.5]} 23...
a5 {[%clk 0:00:51.9]} 24. Qd4 {[%clk 0:01:08.6]} 24... Rfc8 {[%clk 0:00:42.9]}
25. g4 {[%clk 0:01:03.5]} 25... Ba4 {[%clk 0:00:40.9]} 26. Rd2 {[%clk
0:00:59.5]} 26... f6 {[%clk 0:00:30.7]} 27. Ng6 {[%clk 0:00:47.1]} 27... Nc6
{[%clk 0:00:29.3]} 28. Qe3 {[%clk 0:00:45.5]} 28... b5 {[%clk 0:00:23.6]} 29. g5
{[%clk 0:00:40.5]} 29... b4 {[%clk 0:00:16]} 30. c4 {[%clk 0:00:40.5]} 30... b3
{[%clk 0:00:07.8]} 31. a3 {[%clk 0:00:36.2]} 31... Ne7 {[%clk 0:00:04.5]} 32.
gxf6 {[%clk 0:00:34]} 32... Nxg6 {[%clk 0:00:02.8]} 33. Bxg6 {[%clk 0:00:30.5]}
33... Ne4 {[%clk 0:00:02.2]} 34. Bxe4 {[%clk 0:00:18.8]} 34... Rxc4+ {[%clk
0:00:01.9]} 35. Kb1 {[%clk 0:00:19.4]} 35... Rac8 {[%clk 0:00:02.2]} 36. Bd3
{[%clk 0:00:18.2]} 36... Rxf4 {[%clk 0:00:01.4]} 37. fxg7 {[%clk 0:00:15.9]}
37... Qc7 {[%clk 0:00:01.6]} 38. Qxe6+ {[%clk 0:00:13.7]} 38... Rf7 {[%clk
0:00:01.9]} 39. Ne5 {[%clk 0:00:13.3]} 39... Bb5 {[%clk 0:00:01.2]} 40. Qxf7+
{[%clk 0:00:10.3]} 40... Qxf7 {[%clk 0:00:02.1]} 41. Nxf7 {[%clk 0:00:11.1]}
41... Bxd3+ {[%clk 0:00:03]} 42. Rxd3 {[%clk 0:00:11.7]} 42... Kxf7 {[%clk
0:00:03.8]} 43. Rg1 {[%clk 0:00:10.8]} 1-0

[Event "Late-Titled-Tuesday-Blitz-May-14-2024"]
[Site "Chess.com"]
[Date "2024.05.14"]
[Round "3"]
[White "Dhaydon19"]
[Black "KuzubovYuriy"]
[Result "0-1"]
[WhiteElo "2739"]
[BlackElo "2931"]
[TimeControl "180+1"]
[EndTime "14:29:39 PDT"]
[Termination "KuzubovYuriy won by checkmate"]

1. d4 {[%clk 0:03:00.9]} 1... Nf6 {[%clk 0:03:00.4]} 2. c4 {[%clk 0:03:00.1]}
2... e6 {[%clk 0:03:00.7]} 3. Nf3 {[%clk 0:02:59.7]} 3... d5 {[%clk 0:03:01]} 4.
cxd5 {[%clk 0:02:57.2]} 4... exd5 {[%clk 0:03:01]} 5. Nc3 {[%clk 0:02:58]} 5...
c6 {[%clk 0:03:01]} 6. Bg5 {[%clk 0:02:57.4]} 6... Be7 {[%clk 0:02:55.1]} 7. Qc2
{[%clk 0:02:56.7]} 7... g6 {[%clk 0:02:54.1]} 8. e3 {[%clk 0:02:55.1]} 8... Bf5
{[%clk 0:02:54]} 9. Bd3 {[%clk 0:02:54.6]} 9... Bxd3 {[%clk 0:02:54]} 10. Qxd3
{[%clk 0:02:55.3]} 10... Nbd7 {[%clk 0:02:54.3]} 11. O-O {[%clk 0:02:53.9]}
11... O-O {[%clk 0:02:54]} 12. Rab1 {[%clk 0:02:50.6]} 12... a5 {[%clk
0:02:49.7]} 13. Rfc1 {[%clk 0:02:49.5]} 13... Re8 {[%clk 0:02:49.6]} 14. Rc2
{[%clk 0:02:45.5]} 14... Ne4 {[%clk 0:02:45.2]} 15. Bxe7 {[%clk 0:02:45]} 15...
Qxe7 {[%clk 0:02:46.1]} 16. Nd2 {[%clk 0:02:43.1]} 16... Nd6 {[%clk 0:02:44.8]}
17. a3 {[%clk 0:02:37.4]} 17... h5 {[%clk 0:02:41.2]} 18. h3 {[%clk 0:02:35.9]}
18... Kg7 {[%clk 0:02:38.6]} 19. Na4 {[%clk 0:02:23]} 19... Nf6 {[%clk
0:02:26.3]} 20. Nc5 {[%clk 0:02:21.4]} 20... a4 {[%clk 0:02:16.6]} 21. b3 {[%clk
0:02:13.1]} 21... axb3 {[%clk 0:02:13.4]} 22. Rxb3 {[%clk 0:02:12.5]} 22... b5
{[%clk 0:02:06.1]} 23. a4 {[%clk 0:01:59.1]} 23... bxa4 {[%clk 0:02:06.4]} 24.
Ra3 {[%clk 0:01:59.2]} 24... Nf5 {[%clk 0:01:50.4]} 25. Rxa4 {[%clk 0:01:55.1]}
25... Rxa4 {[%clk 0:01:49.4]} 26. Nxa4 {[%clk 0:01:55.1]} 26... Ra8 {[%clk
0:01:46.5]} 27. Nc5 {[%clk 0:01:41.3]} 27... Ra1+ {[%clk 0:01:45.7]} 28. Nf1
{[%clk 0:01:41.7]} 28... Qa7 {[%clk 0:01:29.1]} 29. Nb3 {[%clk 0:01:39.8]} 29...
Ra6 {[%clk 0:01:21.5]} 30. Rc1 {[%clk 0:01:30.6]} 30... Rb6 {[%clk 0:01:08.6]}
31. Nfd2 {[%clk 0:01:20.3]} 31... Nd6 {[%clk 0:01:00.2]} 32. Nc5 {[%clk
0:01:17.7]} 32... Qa2 {[%clk 0:00:56.6]} 33. Qc3 {[%clk 0:01:00.3]} 33... Rb2
{[%clk 0:00:39.9]} 34. Rd1 {[%clk 0:00:42.8]} 34... Rc2 {[%clk 0:00:31.6]} 35.
Qd3 {[%clk 0:00:41.7]} 35... Qb2 {[%clk 0:00:27.2]} 36. Rb1 {[%clk 0:00:37.5]}
36... Qa2 {[%clk 0:00:23.7]} 37. Rd1 {[%clk 0:00:36.8]} 37... Nc4 {[%clk
0:00:22.4]} 38. Ncb3 {[%clk 0:00:32.4]} 38... Nxd2 {[%clk 0:00:17.1]} 39. Nxd2
{[%clk 0:00:27.8]} 39... Qb2 {[%clk 0:00:15.4]} 40. Kf1 {[%clk 0:00:27.6]} 40...
Ne4 {[%clk 0:00:13.8]} 41. Ke1 {[%clk 0:00:23.4]} 41... Nc3 {[%clk 0:00:12.2]}
42. g4 {[%clk 0:00:18.7]} 42... Nxd1 {[%clk 0:00:11.9]} 43. Kxd1 {[%clk
0:00:18.9]} 43... hxg4 {[%clk 0:00:11.2]} 44. hxg4 {[%clk 0:00:18.7]} 44... Qc1+
{[%clk 0:00:09.9]} 45. Ke2 {[%clk 0:00:18.2]} 45... Rb2 {[%clk 0:00:10.3]} 46.
f4 {[%clk 0:00:17.5]} 46... Qg1 {[%clk 0:00:09.6]} 47. Kf3 {[%clk 0:00:17.4]}
47... Qh2 {[%clk 0:00:09]} 48. Nf1 {[%clk 0:00:12.6]} 48... Qf2# {[%clk
0:00:08.8]} 0-1

[Event "Late-Titled-Tuesday-Blitz-May-14-2024"]
[Site "Chess.com"]
[Date "2024.05.14"]
[Round "3"]
[White "FredddieCroderg"]
[Black "Nf3c5"]
[Result "0-1"]
[WhiteElo "2302"]
[BlackElo "2564"]
[TimeControl "180+1"]
[EndTime "14:29:42 PDT"]
[Termination "Nf3c5 won on time"]

1. e4 {[%clk 0:03:00.2]} 1... c5 {[%clk 0:02:55.4]} 2. Bc4 {[%clk 0:02:58.7]}
2... e6 {[%clk 0:02:53]} 3. Qf3 {[%clk 0:02:56.7]} 3... Nc6 {[%clk 0:02:50.8]}
4. d3 {[%clk 0:02:56.2]} 4... Nf6 {[%clk 0:02:50.3]} 5. Nc3 {[%clk 0:02:55.3]}
5... Nd4 {[%clk 0:02:44.3]} 6. Qd1 {[%clk 0:02:53.4]} 6... d5 {[%clk 0:02:44.8]}
7. Bb3 {[%clk 0:02:51.9]} 7... b5 {[%clk 0:02:38]} 8. Be3 {[%clk 0:02:42.4]}
8... Nxb3 {[%clk 0:02:35]} 9. axb3 {[%clk 0:02:41.7]} 9... d4 {[%clk 0:02:35.5]}
10. Nxb5 {[%clk 0:02:38.6]} 10... dxe3 {[%clk 0:02:33.5]} 11. fxe3 {[%clk
0:02:38.6]} 11... a6 {[%clk 0:02:27.6]} 12. Na3 {[%clk 0:02:37.3]} 12... Be7
{[%clk 0:02:17.3]} 13. Nf3 {[%clk 0:02:35.7]} 13... Bb7 {[%clk 0:02:16.9]} 14.
Nc4 {[%clk 0:02:34.5]} 14... O-O {[%clk 0:02:17.2]} 15. O-O {[%clk 0:02:33.7]}
15... Nd7 {[%clk 0:02:13.7]} 16. Na5 {[%clk 0:02:29.5]} 16... Qc7 {[%clk
0:02:09.6]} 17. Nxb7 {[%clk 0:02:17.4]} 17... Qxb7 {[%clk 0:02:09.1]} 18. Nd2
{[%clk 0:02:16.7]} 18... f5 {[%clk 0:01:56.2]} 19. Qe1 {[%clk 0:02:09]} 19...
Ne5 {[%clk 0:01:42.8]} 20. Qg3 {[%clk 0:02:06]} 20... Ng6 {[%clk 0:01:42.2]} 21.
exf5 {[%clk 0:01:52]} 21... exf5 {[%clk 0:01:40.1]} 22. Nc4 {[%clk 0:01:49.9]}
22... Qc6 {[%clk 0:01:37.3]} 23. Qh3 {[%clk 0:01:34]} 23... Nh4 {[%clk
0:01:21.9]} 24. Rf4 {[%clk 0:01:30.1]} 24... g5 {[%clk 0:01:19.3]} 25. Rf2
{[%clk 0:01:12.5]} 25... Rae8 {[%clk 0:01:11.1]} 26. Ne5 {[%clk 0:00:58.8]}
26... Qe6 {[%clk 0:01:03.1]} 27. d4 {[%clk 0:00:58]} 27... Bd6 {[%clk
0:00:51.4]} 28. g3 {[%clk 0:00:56.4]} 28... Ng6 {[%clk 0:00:51.1]} 29. Nxg6
{[%clk 0:00:45.9]} 29... hxg6 {[%clk 0:00:47.3]} 30. Rxa6 {[%clk 0:00:44.4]}
30... cxd4 {[%clk 0:00:43.1]} 31. exd4 {[%clk 0:00:31.1]} 31... Kg7 {[%clk
0:00:37.3]} 32. Qf1 {[%clk 0:00:20.6]} 32... Qd5 {[%clk 0:00:28.5]} 33. c3
{[%clk 0:00:14.8]} 33... Rf7 {[%clk 0:00:27.8]} 34. Re2 {[%clk 0:00:11.4]} 34...
Rxe2 {[%clk 0:00:25.5]} 35. Qxe2 {[%clk 0:00:10.9]} 35... Re7 {[%clk 0:00:26.2]}
36. Qc4 {[%clk 0:00:08.6]} 36... Qf3 {[%clk 0:00:24.5]} 37. Qf1 {[%clk
0:00:06.5]} 37... Qe3+ {[%clk 0:00:20.1]} 38. Qf2 {[%clk 0:00:06.6]} 38... Qc1+
{[%clk 0:00:20.3]} 39. Kg2 {[%clk 0:00:06]} 39... Qd1 {[%clk 0:00:19.4]} 40.
Rxd6 {[%clk 0:00:04]} 40... Re2 {[%clk 0:00:19.9]} 41. c4 {[%clk 0:00:00.9]}
41... Rxf2+ {[%clk 0:00:15.1]} 42. Kxf2 {[%clk 0:00:01.8]} 42... Qd2+ {[%clk
0:00:15.8]} 43. Kf1 {[%clk 0:00:00.6]} 43... f4 {[%clk 0:00:14.9]} 44. c5 {[%clk
0:00:00.5]} 44... f3 {[%clk 0:00:15.1]} 0-1

[Event "Late-Titled-Tuesday-Blitz-May-14-2024"]
[Site "Chess.com"]
[Date "2024.05.14"]
[Round "3"]
[White "The_Machine04"]
[Black "SharathRk6"]
[Result "0-1"]
[WhiteElo "2656"]
[BlackElo "2491"]
[TimeControl "180+1"]
[EndTime "14:29:43 PDT"]
[Termination "SharathRk6 won by checkmate"]

1. d4 {[%clk 0:03:00.9]} 1... Nf6 {[%clk 0:02:59.2]} 2. Nf3 {[%clk 0:02:59.3]}
2... d5 {[%clk 0:02:58.8]} 3. e3 {[%clk 0:02:59.5]} 3... e6 {[%clk 0:02:58.7]}
4. Nbd2 {[%clk 0:02:59.9]} 4... Be7 {[%clk 0:02:59]} 5. Bd3 {[%clk 0:03:00.1]}
5... O-O {[%clk 0:02:59.2]} 6. O-O {[%clk 0:03:01]} 6... c5 {[%clk 0:02:59.3]}
7. c3 {[%clk 0:03:01.1]} 7... Nc6 {[%clk 0:02:59.6]} 8. dxc5 {[%clk 0:03:00.9]}
8... Bxc5 {[%clk 0:02:59.1]} 9. b4 {[%clk 0:03:00.3]} 9... Be7 {[%clk
0:02:59.3]} 10. Bb2 {[%clk 0:02:59.2]} 10... a6 {[%clk 0:02:59.3]} 11. a3 {[%clk
0:02:59]} 11... Bd7 {[%clk 0:02:59.8]} 12. c4 {[%clk 0:02:59.2]} 12... Rc8
{[%clk 0:02:57.6]} 13. Rc1 {[%clk 0:02:59.7]} 13... Na7 {[%clk 0:02:56.9]} 14.
Qe2 {[%clk 0:02:58.2]} 14... dxc4 {[%clk 0:02:56.8]} 15. Nxc4 {[%clk 0:02:59.1]}
15... Bb5 {[%clk 0:02:54]} 16. Rfd1 {[%clk 0:02:59.6]} 16... Bxc4 {[%clk
0:02:36.7]} 17. Bxc4 {[%clk 0:03:00.5]} 17... Qe8 {[%clk 0:02:35.7]} 18. Ne5
{[%clk 0:02:54.5]} 18... Nc6 {[%clk 0:02:34.2]} 19. Nxc6 {[%clk 0:02:50.3]}
19... Qxc6 {[%clk 0:02:31.2]} 20. Bd3 {[%clk 0:02:44.7]} 20... Qa4 {[%clk
0:02:21.1]} 21. Bc2 {[%clk 0:02:43.4]} 21... Qe8 {[%clk 0:02:13.2]} 22. Qf3
{[%clk 0:02:42.2]} 22... h6 {[%clk 0:02:00.2]} 23. Qxb7 {[%clk 0:02:40.2]} 23...
a5 {[%clk 0:01:56.6]} 24. bxa5 {[%clk 0:02:32.1]} 24... Rb8 {[%clk 0:01:55.7]}
25. a6 {[%clk 0:02:12.3]} 25... Rxb7 {[%clk 0:01:52.3]} 26. axb7 {[%clk
0:02:13.2]} 26... Qb8 {[%clk 0:01:39.3]} 27. Rb1 {[%clk 0:02:09]} 27... Nd5
{[%clk 0:01:18.5]} 28. Bd4 {[%clk 0:01:36.2]} 28... Bf6 {[%clk 0:01:03]} 29. Be4
{[%clk 0:01:12.5]} 29... Bxd4 {[%clk 0:00:59.7]} 30. Bxd5 {[%clk 0:01:11.9]}
30... Be5 {[%clk 0:00:47.1]} 31. Bf3 {[%clk 0:01:05.6]} 31... Bxh2+ {[%clk
0:00:46.6]} 32. Kh1 {[%clk 0:01:05.6]} 32... Bc7 {[%clk 0:00:47]} 33. Rdc1
{[%clk 0:00:59.5]} 33... Rd8 {[%clk 0:00:44.2]} 34. Rc6 {[%clk 0:00:55.8]} 34...
Rd6 {[%clk 0:00:40.3]} 35. Rxd6 {[%clk 0:00:49.2]} 35... Bxd6 {[%clk 0:00:40.3]}
36. Rb6 {[%clk 0:00:49.3]} 36... Bc5 {[%clk 0:00:22.9]} 37. Ra6 {[%clk
0:00:40.1]} 37... Ba7 {[%clk 0:00:23.3]} 38. g3 {[%clk 0:00:20.9]} 38... g5
{[%clk 0:00:22.5]} 39. Kg2 {[%clk 0:00:20.5]} 39... Kg7 {[%clk 0:00:23]} 40. Ra4
{[%clk 0:00:19.5]} 40... f5 {[%clk 0:00:21.6]} 41. Rc4 {[%clk 0:00:17.6]} 41...
g4 {[%clk 0:00:20.2]} 42. Bc6 {[%clk 0:00:16.7]} 42... Kf6 {[%clk 0:00:19.7]}
43. Kg1 {[%clk 0:00:16.4]} 43... h5 {[%clk 0:00:18.5]} 44. Bg2 {[%clk
0:00:16.6]} 44... Qe5 {[%clk 0:00:15.2]} 45. Rc8 {[%clk 0:00:14]} 45... Bb8
{[%clk 0:00:15.7]} 46. a4 {[%clk 0:00:14]} 46... h4 {[%clk 0:00:16.1]} 47. gxh4
{[%clk 0:00:14.1]} 47... g3 {[%clk 0:00:15.6]} 48. fxg3 {[%clk 0:00:10.9]} 48...
Qxe3+ {[%clk 0:00:15.1]} 49. Kf1 {[%clk 0:00:10.6]} 49... Bxg3 {[%clk
0:00:14.4]} 50. Rc2 {[%clk 0:00:04.7]} 50... Qe1# {[%clk 0:00:13.5]} 0-1